bitfinex/quotes_ETHUSD_20241024
["timestamp","ask_amount","ask_price","bid_price","bid_amount"]
[1729783247609,3.95165,2530.6,2530.4,0.7905]
[1729783248117,3.95179,2530.5,2530.2,0.7731]
[1729783248271,3.9521,2530.3,2530.2,0.7731]
[1729783248470,3.9521,2530.3,2530.0,0.7731]
[1729783249089,3.95202,2530.4,2530.0,4.72565]
[1729783249486,3.9518,2530.5,2530.1,3.9524]
[1729783249684,0.7578,2530.9,2530.1,3.95231]
[1729783249885,3.95166,2530.6,2530.2,3.95224]
[1729783250318,3.95147,2530.7,2530.1,3.95231]
[1729783250502,3.9518,2530.5,2530.1,3.95231]
[1729783251399,3.95148,2530.7,2530.1,7.90466]
[1729783251614,3.95148,2530.7,2530.2,3.95214]
[1729783251819,3.95164,2530.6,2530.2,3.95214]
[1729783252133,3.95156,2530.7,2530.4,0.8067]
[1729783252632,3.95178,2530.5,2530.2,0.8067]
[1729783252774,3.95162,2530.7,2530.2,4.75894]
[1729783252980,3.95162,2530.7,2530.2,0.8067]
[1729783253181,3.95205,2530.4,2530.2,0.8067]
[1729783253385,3.95219,2530.3,2530.0,0.7939]
[1729783253887,3.95193,2530.5,2530.0,4.7464]
[1729783254196,3.95193,2530.5,2530.0,0.7939]
[1729783254515,3.95204,2530.4,2530.0,0.7939]
[1729783255419,3.95204,2530.4,2530.0,4.74644]
[1729783255585,3.95204,2530.4,2530.0,0.7939]
[1729783255586,3.95218,2530.3,2530.0,0.7939]
[1729783256078,3.95204,2530.4,2530.0,0.7939]
[1729783256295,3.95216,2530.3,2530.0,0.7939]
[1729783256527,4.73764,2530.4,2530.0,0.7939]
[1729783257025,4.73763,2530.4,2530.0,0.7939]
[1729783258386,8.68967,2530.4,2530.0,0.7939]
[1729783258984,4.73763,2530.4,2530.0,0.7939]
[1729783259690,3.95213,2530.3,2530.0,0.7939]
[1729783260127,3.95213,2530.3,2529.7,3.95293]
[1729783260128,3.95241,2530.1,2529.7,0.7906]
[1729783260334,3.95263,2530.0,2529.7,0.7906]
[1729783260534,3.95241,2530.1,2529.7,0.7906]
[1729783260535,7.90494,2530.1,2529.7,0.7906]
[1729783260702,3.95257,2530.0,2529.7,0.7906]
[1729783261286,3.95282,2529.9,2529.7,0.7906]
[1729783261597,3.95282,2529.9,2529.1,4.47779639]
[1729783261598,3.95336,2529.5,2529.3,0.8186]
[1729783261814,3.9535,2529.4,2529.3,0.8186]
[1729783262013,3.95369,2529.3,2529.1,0.8186]
[1729783262227,3.9535,2529.4,2529.1,0.8186]
[1729783262722,3.9533,2529.6,2529.1,0.8186]
[1729783263033,3.9533,2529.6,2529.1,4.77257]
[1729783263034,7.9066,2529.6,2529.1,4.77257]
[1729783263199,3.95343,2529.5,2529.1,4.77251]
[1729783263528,3.9533,2529.6,2529.1,4.77248]
[1729783263529,3.95326,2529.6,2529.1,4.77248]
[1729783263734,3.95339,2529.5,2529.1,4.77248]
[1729783265407,7.90686,2529.5,2529.1,0.8186]
[1729783265906,3.95339,2529.5,2529.1,0.8186]
[1729783266816,3.9535,2529.4,2529.1,0.8186]
[1729783267128,0.71353938,2529.5,2529.1,0.8186]
[1729783267129,3.95381,2529.2,2529.1,0.8186]
[1729783267346,3.95405,2529.1,2528.9,0.7604]
[1729783267695,3.95381,2529.2,2528.9,0.7604]
[1729783267696,3.95383,2529.2,2528.9,0.7604]
[1729783268558,7.90773,2529.2,2528.9,0.7604]
[1729783268705,7.90777,2529.2,2528.9,0.7604]
[1729783268911,0.790777,2529.2,2528.4,0.7971]
[1729783269112,5.19120798,2529.5,2528.4,0.7971]
[1729783269113,3.95424,2529.0,2528.6,3.95475]
[1729783269742,3.95424,2529.0,2528.5,3.95482]
[1729783270158,3.95429,2528.9,2528.5,3.95491]
[1729783270454,3.95421,2529.0,2528.2,0.7971]
[1729783270455,3.95516,2528.4,2528.2,0.7971]
[1729783270650,3.6578686,2528.8,2528.2,0.7971]
[1729783270651,3.95451,2528.8,2528.3,3.95515]
[1729783270840,3.95439,2528.9,2528.4,3.95496]
[1729783271016,3.95415,2529.0,2528.5,3.95479]
[1729783271212,3.95415,2529.0,2528.6,3.95473]
[1729783271554,3.95379,2529.3,2528.7,4.75156]
[1729783271860,3.95397,2529.1,2528.7,4.75156]
[1729783272038,3.95397,2529.1,2528.7,0.7971]
[1729783272214,3.95421,2529.0,2528.7,0.7971]
[1729783272855,3.9543,2528.9,2528.7,0.7971]
[1729783273016,3.95397,2529.1,2528.7,0.7971]
[1729783273212,3.95437,2528.9,2528.7,0.7971]
[1729783273439,3.95442,2528.9,2528.4,0.8047]
[1729783273638,3.95463,2528.7,2528.4,0.8047]
[1729783273839,4.4240686,2529.0,2528.4,0.8047]
[1729783273840,3.95491,2528.5,2528.4,0.8047]
[1729783274039,3.95492,2528.5,2528.1,0.8047]
[1729783274556,3.95508,2528.4,2528.1,0.8047]
[1729783275051,7.90997,2528.5,2528.1,0.8047]
[1729783275352,3.95492,2528.5,2528.1,0.8047]
[1729783275575,7.90997,2528.5,2528.1,0.8047]
[1729783275782,3.95492,2528.5,2528.1,0.8047]
[1729783275943,7.90994,2528.5,2528.1,0.8047]
[1729783276643,3.95492,2528.5,2528.1,0.8047]
[1729783276843,3.95472,2528.7,2528.2,3.95536]
[1729783277043,3.9547,2528.7,2528.2,3.95536]
[1729783277244,3.9548,2528.6,2528.2,3.95536]
[1729783277771,3.9548,2528.6,2528.1,0.8838037]
[1729783277936,3.9548,2528.6,2528.1,0.8047]
[1729783278137,3.9548,2528.6,2528.2,3.95537]
[1729783278353,3.955,2528.5,2528.1,0.8047]
[1729783278575,3.9548,2528.6,2528.1,0.8047]
[1729783278773,3.95507,2528.4,2528.1,0.8047]
[1729783279772,3.95493,2528.5,2528.1,4.76022]
[1729783279955,3.95493,2528.5,2528.1,0.8047]
[1729783280159,3.95514,2528.4,2528.1,0.8047]
[1729783280976,1.15948,2528.6,2528.1,0.8047]
[1729783280977,3.95538,2528.3,2528.1,0.8047]
[1729783281288,3.9557,2528.0,2527.7,0.8295]
[1729783281439,7.91183,2527.9,2527.7,0.8295]
[1729783281635,3.956,2527.8,2527.7,0.8295]
[1729783281840,3.95577,2528.0,2527.6,0.786]
[1729783282060,7.91159,2528.0,2527.6,0.786]
[1729783282465,3.95592,2527.9,2527.6,0.786]
[1729783283068,3.95577,2528.0,2527.6,0.786]
[1729783283416,0.84081386,2528.0,2527.5,0.7915]
[1729783283615,3.95578,2528.0,2527.6,3.9562]
[1729783283916,3.95556,2528.1,2527.7,3.95616]
[1729783284322,3.95556,2528.1,2527.5,4.74788]
[1729783284323,3.95556,2528.1,2527.6,3.9563]
[1729783284816,3.95525,2528.3,2527.8,0.8186]
[1729783285115,3.95525,2528.3,2527.9,3.95584]
[1729783285318,3.95484,2528.6,2528.2,3.95535]
[1729783285777,3.95462,2528.7,2528.2,3.95524]
[1729783285975,3.95454,2528.8,2528.4,3.95506]
[1729783286198,3.95454,2528.8,2528.5,0.7904]
[1729783286518,3.95475,2528.6,2528.5,0.7904]
[1729783286719,3.95475,2528.6,2528.2,3.9553]
[1729783286720,3.95475,2528.6,2528.3,0.7904]
[1729783287075,3.95498,2528.5,2528.3,0.7904]
[1729783287897,3.95475,2528.6,2528.3,0.7904]
[1729783288600,3.95462,2528.7,2528.3,0.7904]
[1729783288807,3.95476,2528.6,2528.3,0.7904]
[1729783289110,3.95476,2528.6,2528.1,0.07910197]
[1729783289111,3.95496,2528.5,2528.1,0.7837]
[1729783289293,3.95496,2528.5,2528.1,4.73915]
[1729783289911,3.95496,2528.5,2528.1,0.7837]
[1729783290280,3.95496,2528.5,2528.1,4.73921]
[1729783290505,3.95496,2528.5,2528.1,0.7837]
[1729783290724,3.95507,2528.4,2528.1,0.7837]
[1729783291289,7.91026,2528.4,2528.1,0.7837]
[1729783291531,3.95507,2528.4,2528.1,0.7837]
[1729783291898,3.6578686,2528.6,2527.8,4.74606]
[1729783292099,3.95516,2528.4,2527.9,4.50576]
[1729783292503,3.95535,2528.3,2527.9,0.55]
[1729783293031,3.95507,2528.4,2527.8,0.7901]
[1729783293324,3.95561,2528.1,2527.7,3.95614]
[1729783293491,3.95561,2528.1,2527.6,0.7901]
[1729783293492,3.95577,2528.0,2527.6,0.7901]
[1729783293894,7.91161,2528.0,2527.6,0.7901]
[1729783294220,3.95577,2528.0,2527.6,0.7901]
[1729783294539,7.6132686,2528.2,2527.3,3.95671]
[1729783294835,3.95593,2527.9,2527.4,0.7901]
[1729783295406,7.91191,2527.9,2527.4,4.74663]
[1729783295606,3.95601,2527.8,2527.4,4.74663]
[1729783296834,3.95571,2528.0,2527.4,4.74663]
[1729783297036,3.95586,2527.9,2527.5,3.95646]
[1729783298312,3.95586,2527.9,2527.4,8.70313]
[1729783298728,3.95571,2528.0,2527.4,4.7466]
[1729783298924,0.7829,2528.3,2527.9,3.95577]
[1729783298925,4.73814,2528.3,2527.9,3.95577]
[1729783299125,4.430469,2528.6,2528.1,3.95544]
[1729783299456,3.95498,2528.5,2528.1,7.9109]
[1729783299622,3.95498,2528.5,2528.0,0.8237]
[1729783299823,3.95498,2528.5,2528.0,4.77931]
[1729783300042,3.752,2528.7,2528.0,4.77931]
[1729783300355,3.95508,2528.4,2528.0,4.77931]
[1729783302238,3.95475,2528.6,2528.1,3.95552]
[1729783302749,3.95499,2528.5,2528.1,3.95552]
[1729783303124,3.95499,2528.5,2528.0,0.8237]
[1729783303125,3.95517,2528.4,2527.9,3.95581]
[1729783303325,3.95517,2528.4,2528.0,3.95568]
[1729783303911,3.95499,2528.5,2528.0,3.95568]
[1729783304247,3.95499,2528.5,2528.1,3.95553]
[1729783304450,4.70674,2528.7,2528.2,0.8014]
[1729783304451,0.752,2528.7,2528.2,0.8014]
[1729783304745,3.95484,2528.6,2528.2,0.8014]
[1729783304909,3.95484,2528.6,2528.2,4.75675]
[1729783305453,3.7527,2528.9,2528.3,3.95522]
[1729783305454,3.9546,2528.8,2528.3,3.95522]
[1729783305607,4.70712,2528.9,2528.4,3.95499]
[1729783305608,8.66153,2528.9,2528.4,3.95499]
[1729783305813,3.95437,2528.9,2528.4,3.95507]
[1729783306251,3.95445,2528.8,2528.3,8.78948176]
[1729783306424,3.9546,2528.7,2528.3,4.83426176]
[1729783306625,3.9546,2528.7,2528.3,3.95515]
[1729783306853,3.95451,2528.8,2528.4,3.95506]
[1729783307152,3.95466,2528.7,2528.3,3.95515]
[1729783308026,0.7527,2529.1,2528.5,3.95487]
[1729783308239,4.7067,2529.1,2528.6,0.8014]
[1729783308466,4.7067,2529.1,2528.6,4.75606]
[1729783308629,3.95414,2529.0,2528.6,4.75606]
[1729783309126,4.70669,2529.1,2528.6,4.75606]
[1729783309530,4.76266,2529.4,2528.7,3.9546]
[1729783309730,3.95393,2529.2,2528.7,4.03358497]
[1729783310729,3.95393,2529.2,2528.8,3.95441]
[1729783311267,3.95413,2529.0,2528.6,4.75614]
[1729783311453,7.90839,2529.0,2528.6,0.8014]
[1729783311653,7.90838,2529.0,2528.6,0.8014]
[1729783311972,3.95413,2529.0,2528.6,0.8014]
[1729783312363,3.95413,2529.0,2528.6,4.75615]
[1729783312667,3.95413,2529.0,2528.6,4.75613]
[1729783312865,3.95399,2529.1,2528.6,4.83521686]
[1729783313066,3.95383,2529.2,2528.8,3.95436]
[1729783313269,3.95374,2529.3,2528.8,3.95436]
[1729783313470,3.95374,2529.3,2528.9,3.95426]
[1729783314140,3.95383,2529.2,2528.8,3.95436]
[1729783314340,3.95383,2529.2,2528.8,3.95434]
[1729783314543,4.76272,2529.4,2528.8,3.95434]
[1729783314874,4.76272,2529.4,2528.8,3.95431]
[1729783314875,3.95367,2529.3,2528.8,3.95431]
[1729783315836,3.95388,2529.2,2528.8,3.95431]
[1729783316442,3.95367,2529.3,2528.8,7.90866]
[1729783316672,1.50092659,2529.4,2528.6,0.8014]
[1729783316903,5.15879519,2529.4,2528.6,4.75614]
[1729783317045,3.95404,2529.1,2528.6,4.75607]
[1729783317676,3.95415,2529.0,2528.6,4.75607]
[1729783317842,3.95415,2529.0,2528.6,0.8014]
[1729783318271,3.95436,2528.9,2528.6,0.8014]
[1729783319069,3.95428,2528.9,2528.6,0.8014]
[1729783319279,3.95447,2528.8,2528.4,3.95499]
[1729783319478,3.95453,2528.8,2528.3,3.95516]
[1729783319771,3.95453,2528.8,2528.4,3.95496]
[1729783320334,0.866466,2528.9,2528.5,3.95491]
[1729783320566,3.95413,2529.0,2528.6,4.75664]
[1729783320782,3.95413,2529.0,2528.6,0.8019]
[1729783320783,7.90836,2529.0,2528.6,0.8019]
[1729783320964,3.95435,2528.9,2528.6,0.8019]
[1729783321773,0.7836,2528.7,2528.2,0.7947]
[1729783321976,3.95482,2528.6,2528.2,0.7947]
[1729783322198,7.90973,2528.6,2528.2,0.7947]
[1729783322577,0.7836,2528.7,2528.2,0.7947]
[1729783322791,3.95483,2528.6,2528.2,0.7947]
[1729783323286,3.95483,2528.6,2528.2,4.75004]
[1729783323601,3.95494,2528.5,2528.2,0.7947]
[1729783323799,0.7836,2528.7,2528.2,4.75001]
[1729783323800,4.73828,2528.7,2528.2,4.75001]
[1729783324001,4.73828,2528.7,2528.3,3.95521]
[1729783324002,3.95468,2528.7,2528.3,3.95521]
[1729783324207,0.8063,2528.9,2528.5,3.9548]
[1729783324461,0.8063,2528.9,2528.4,0.07909651]
[1729783324462,3.95419,2529.0,2528.6,0.7923]
[1729783324613,3.95428,2528.9,2528.4,3.955]
[1729783324909,3.95428,2528.9,2528.4,4.7878]
[1729783324910,3.95446,2528.8,2528.4,4.7878]
[1729783325405,3.95456,2528.8,2528.4,0.8328]
[1729783325605,0.7721,2528.6,2528.1,0.8328]
[1729783325806,3.95491,2528.5,2528.1,4.78831]
[1729783325972,3.95491,2528.5,2528.1,4.78823]
[1729783326384,3.95491,2528.5,2528.1,4.78738739]
[1729783326582,3.95507,2528.4,2528.1,0.83195739]
[1729783326870,3.9553,2528.3,2527.8,3.95587]
[1729783327194,3.95561,2528.1,2527.6,3.95619]
[1729783327376,3.95577,2528.0,2527.6,3.95619]
[1729783327572,0.7721,2528.2,2527.7,3.95614]
[1729783327791,0.7721,2528.2,2527.8,3.956]
[1729783327792,0.472741,2528.1,2527.8,3.956]
[1729783328678,3.95541,2528.2,2527.7,4.03521792]
[1729783328880,3.95541,2528.2,2527.7,3.95608]
[1729783329091,4.72729,2528.4,2527.7,3.95608]
[1729783329293,3.95525,2528.3,2527.8,3.956]
[1729783329509,4.72729,2528.4,2527.9,4.77884]
[1729783329712,5.27996552,2528.4,2528.0,3.95568]
[1729783329873,3.95524,2528.3,2527.9,0.823]
[1729783330181,1.32477552,2528.4,2528.0,3.95559]
[1729783330532,3.95479,2528.6,2528.2,3.95528]
[1729783331420,3.95509,2528.4,2528.0,3.95559]
[1729783331955,3.95492,2528.5,2528.0,3.95557]
[1729783332125,3.95508,2528.4,2528.0,3.95557]
[1729783332317,3.95508,2528.4,2527.9,0.823]
[1729783332516,0.764,2528.4,2527.9,0.823]
[1729783332695,3.95558,2528.1,2527.9,0.823]
[1729783332898,3.95537,2528.3,2527.7,4.76474]
[1729783333091,3.95554,2528.1,2527.7,4.76474]
[1729783333302,4.427337,2528.2,2527.8,3.95598]
[1729783333913,4.427337,2528.2,2527.7,4.76462]
[1729783334110,4.427337,2528.2,2527.7,8.72068]
[1729783334484,4.427337,2528.2,2527.7,4.76462]
[1729783334729,4.3982737,2528.1,2527.7,4.76462]
[1729783334903,0.4427337,2528.1,2527.7,4.76462]
[1729783335100,4.3982837,2528.1,2527.7,4.76462]
[1729783335415,4.3982837,2528.1,2527.7,0.8086]
[1729783335615,4.3982837,2528.1,2527.7,4.76475]
[1729783335817,4.79106937,2528.0,2527.7,0.8086]
[1729783336041,4.79106937,2528.0,2527.5,0.7901]
[1729783336042,5.55986937,2528.0,2527.5,0.7901]
[1729783336335,4.72451,2528.0,2527.6,3.95629]
[1729783336630,3.95587,2527.9,2527.5,4.74644]
[1729783337193,0.7688,2528.0,2527.5,4.74644]
[1729783337392,0.472434,2527.9,2527.5,4.74644]
[1729783337597,4.428324,2527.9,2527.5,4.74644]
[1729783337891,0.472434,2527.9,2527.5,4.74644]
[1729783338106,0.7688,2528.0,2527.5,4.74644]
[1729783338324,3.95585,2527.9,2527.5,4.74644]
[1729783339518,3.95616,2527.7,2527.3,0.7901]
[1729783339721,3.6578686,2527.8,2527.1,0.7901]
[1729783339722,3.95638,2527.6,2527.1,0.7901]
[1729783339947,3.95638,2527.6,2527.1,4.74714]
[1729783340155,3.95638,2527.6,2527.2,3.95694]
[1729783340325,0.7688,2527.6,2527.1,0.7901]
[1729783340528,0.7688,2527.6,2526.9,0.7901]
[1729783340529,3.95695,2527.2,2526.9,0.7901]
[1729783340853,3.9568,2527.3,2526.9,4.74745]
[1729783341166,3.95672,2527.4,2527.0,3.95724]
[1729783341461,5.19069886,2527.4,2527.0,3.95724]
[1729783341671,1.23397886,2527.4,2527.0,3.95724]
[1729783341830,5.19062886,2527.4,2527.0,3.95724]
[1729783342159,5.19062886,2527.4,2526.9,4.74743]
[1729783342724,1.23397886,2527.4,2526.9,4.74743]
[1729783342928,3.9567,2527.4,2526.9,4.74743]
[1729783343570,3.9569,2527.3,2526.9,0.7901]
[1729783343774,3.9569,2527.3,2526.9,4.74742]
[1729783343942,4.4266686,2527.6,2526.9,0.7901]
[1729783344131,3.9569,2527.3,2526.8,3.95752]
[1729783344483,1.15714686,2527.2,2526.8,3.95752]
[1729783344832,1.15714686,2527.2,2526.9,3.9574]
[1729783345138,1.15714686,2527.2,2526.8,3.95752]
[1729783345324,5.93030686,2527.2,2526.7,4.74782]
[1729783345530,5.93030686,2527.2,2526.8,3.95755]
[1729783345739,3.95711,2527.1,2526.7,4.74782]
[1729783346141,3.95732,2527.0,2526.7,0.7901]
[1729783346381,4.94608769,2527.0,2526.7,0.7901]
[1729783346581,4.77358,2526.8,2526.4,4.76548]
[1729783346886,4.4738686,2526.8,2525.9,0.8073]
[1729783347039,4.4738686,2526.8,2525.6,3.95944]
[1729783347040,4.77364,2526.8,2526.3,4.76554]
[1729783347380,4.40522686,2526.7,2526.3,0.8073]
[1729783347544,4.40522686,2526.7,2526.0,4.76605]
[1729783347545,0.44738686,2526.7,2526.0,4.76605]
[1729783347863,0.44738686,2526.7,2526.1,3.95866]
[1729783347864,8.36296686,2526.7,2526.1,3.95866]
[1729783348066,3.95789,2526.6,2526.2,3.9585]
[1729783348243,3.95804,2526.5,2526.0,4.7661]
[1729783348444,3.95846,2526.3,2525.8,4.76643]
[1729783348757,4.77433,2526.4,2525.9,3.95892]
[1729783348954,4.77433,2526.4,2525.9,7.91783]
[1729783349488,4.77433,2526.4,2525.9,3.95891]
[1729783349683,4.77433,2526.4,2526.0,3.95881]
[1729783349883,2.09968855,2526.6,2526.1,3.95865]
[1729783350053,0.60574686,2526.5,2526.2,3.9585]
[1729783350381,3.95754,2526.9,2526.3,4.76564]
[1729783350382,4.77354,2526.9,2526.3,4.76564]
[1729783350580,3.95768,2526.8,2526.3,4.76564]
[1729783350786,4.77354,2526.9,2526.4,3.9581]
[1729783350991,4.77354,2526.9,2526.3,4.76557]
[1729783350992,4.77354,2526.9,2526.3,4.76565]
[1729783351200,3.95759,2526.8,2526.3,0.8073]
[1729783351400,5.10073586,2526.8,2526.4,3.95819]
[1729783351760,7.6149486,2527.2,2526.4,3.9581]
[1729783352074,0.832,2527.1,2526.3,4.76564]
[1729783352287,7.6152086,2527.0,2526.3,0.8073]
[1729783352453,3.95734,2527.0,2526.5,3.95795]
[1729783352658,7.9147,2527.0,2526.5,3.95795]
[1729783352971,5.19771686,2527.0,2526.5,7.94572043]
[1729783353281,7.91465,2527.0,2526.5,3.98777043]
[1729783353487,0.832,2527.1,2526.5,3.98777043]
[1729783353488,7.91496,2526.9,2526.5,0.02982043]
[1729783353665,3.95743,2526.9,2526.5,0.02982043]
[1729783353990,3.95761,2526.8,2526.5,0.02982043]
[1729783354598,3.95743,2526.9,2526.5,0.02982043]
[1729783354794,3.95727,2527.0,2526.5,0.59641535]
[1729783355090,3.95766,2526.8,2526.5,0.02982043]
[1729783355651,3.95742,2526.9,2526.5,0.02982043]
[1729783356091,3.95742,2526.9,2526.5,3.98776043]
[1729783356474,3.95721,2527.1,2526.6,3.95788]
[1729783356665,3.95698,2527.2,2526.7,4.75225]
[1729783356885,4.71299,2527.3,2526.7,4.75225]
[1729783356886,3.9571,2527.1,2526.7,4.75225]
[1729783357073,3.95697,2527.2,2526.8,3.95756]
[1729783357407,3.95716,2527.1,2526.7,4.75225]
[1729783357560,4.71301,2527.3,2526.8,3.95755]
[1729783357894,3.95733,2527.0,2526.7,0.7946]
[1729783358098,3.95711,2527.1,2526.7,0.7946]
[1729783358507,3.95728,2527.0,2526.7,0.7946]
[1729783358706,3.95724,2527.1,2526.7,0.7946]
[1729783358906,4.51228279,2527.1,2526.7,0.7946]
[1729783359118,3.95744,2526.9,2526.5,3.98786043]
[1729783359282,3.95744,2526.9,2526.5,0.82442043]
[1729783359770,0.55504279,2527.1,2526.5,0.82442043]
[1729783359771,3.95781,2526.7,2526.5,0.02982043]
[1729783359973,7.6157486,2526.6,2526.5,0.02982043]
[1729783360172,7.6157486,2526.6,2525.9,0.7946]
[1729783360173,4.89450446,2526.6,2525.9,0.7946]
[1729783360385,3.95861,2526.2,2525.9,0.7946]
[1729783360614,0.7928,2526.3,2525.9,0.7946]
[1729783360615,3.95869,2526.1,2525.9,0.7946]
[1729783360786,3.95869,2526.1,2525.5,4.79073]
[1729783361174,3.95913,2525.9,2525.5,0.8312]
[1729783361380,0.395913,2525.9,2525.5,0.8312]
[1729783361673,0.395913,2525.9,2525.4,0.02983342]
[1729783361674,3.95937,2525.7,2525.4,0.02983342]
[1729783361873,4.354993,2525.9,2525.4,0.02983342]
[1729783362093,8.314053,2525.9,2525.4,3.98947342]
[1729783362291,3.95934,2525.7,2525.4,0.02983342]
[1729783362808,0.9068323,2525.7,2525.4,0.02983342]
[1729783363020,4.4117686,2525.8,2525.4,0.02983342]
[1729783363321,8.3709986,2525.8,2525.4,0.02983342]
[1729783363472,0.395913,2525.9,2525.5,3.95957]
[1729783363796,0.7539,2526.1,2525.5,4.73447]
[1729783364001,4.71265,2526.1,2525.6,3.95942]
[1729783364375,4.71265,2526.1,2525.6,7.91878]
[1729783364719,3.95875,2526.1,2525.5,0.7749]
[1729783365019,4.72059186,2526.0,2525.5,0.7749]
[1729783365216,4.72059186,2526.0,2525.4,3.98944342]
[1729783365217,3.95915,2525.8,2525.4,3.98944342]
[1729783365389,8.37846046,2526.0,2525.5,3.95959]
[1729783365721,3.95899,2525.9,2525.4,3.98959342]
[1729783366224,4.72050186,2526.0,2525.5,3.95951]
[1729783366926,4.72049186,2526.0,2525.5,3.95951]
[1729783367287,3.95851,2526.2,2525.7,4.74471]
[1729783368219,3.95851,2526.2,2525.8,3.95913]
[1729783368386,3.95851,2526.2,2525.7,4.74475]
[1729783368387,3.95862,2526.2,2525.7,4.74475]
[1729783368586,4.74757,2526.3,2525.8,3.9591]
[1729783368792,3.95837,2526.3,2525.8,3.9591]
[1729783369003,3.95837,2526.3,2525.9,3.95895]
[1729783369222,3.95816,2526.5,2525.9,3.95895]
[1729783369396,3.95828,2526.4,2525.9,3.95889]
[1729783369595,5.22429645,2526.5,2525.9,3.95889]
[1729783369801,5.22426645,2526.5,2526.0,3.95882]
[1729783370088,5.22426645,2526.5,2526.0,3.95874]
[1729783370409,3.95813,2526.5,2526.1,4.73789]
[1729783370608,3.95785,2526.7,2526.2,3.95844]
[1729783371013,4.76624,2526.9,2526.3,3.95829]
[1729783371319,3.6578686,2526.8,2526.1,4.7379]
[1729783371520,3.95802,2526.6,2526.1,4.7379]
[1729783371686,3.95807,2526.5,2526.1,4.7379]
[1729783372108,3.95822,2526.4,2526.1,0.7793]
[1729783372592,3.95827,2526.4,2525.9,0.7849]
[1729783372815,3.95864,2526.2,2525.9,0.7849]
[1729783373012,7.9173,2526.2,2525.9,0.7849]
[1729783373323,3.9586,2526.2,2525.9,0.7849]
[1729783374488,8.73671,2526.4,2525.9,4.7438]
[1729783374697,3.95829,2526.4,2526.0,3.95875]
[1729783375324,4.71957886,2526.6,2526.1,3.95867]
[1729783375515,3.95805,2526.5,2526.1,3.95867]
[1729783375713,4.71957886,2526.6,2526.1,7.91724]
[1729783375891,3.95774,2526.7,2526.2,3.9585]
[1729783376201,3.95828,2526.4,2526.0,0.7674]
[1729783376605,3.95828,2526.4,2526.0,4.7262]
[1729783376992,3.95828,2526.4,2526.0,0.7674]
[1729783378223,3.95828,2526.4,2526.0,4.72613]
[1729783378399,3.95799,2526.6,2526.0,0.7674]
[1729783378724,3.95812,2526.5,2526.0,0.7674]
[1729783378928,3.95831,2526.4,2526.0,0.7674]
[1729783380934,3.95836,2526.3,2526.0,0.7674]
[1729783381895,3.95812,2526.5,2526.0,0.7674]
[1729783382096,4.80429955,2526.4,2526.0,4.72622]
[1729783382413,3.95805,2526.5,2526.0,4.7261]
[1729783382617,0.84480686,2526.6,2526.0,8.68478]
[1729783382807,3.95805,2526.5,2526.0,8.68478]
[1729783383005,4.83412269,2526.5,2526.0,8.68478]
[1729783383225,4.83412269,2526.5,2526.0,8.68481]
[1729783383432,7.9157,2526.7,2526.2,3.9585]
[1729783383736,7.91567,2526.7,2526.2,3.9585]
[1729783384139,3.95782,2526.7,2526.2,3.9585]
[1729783384347,0.8322,2526.8,2526.5,3.958]
[1729783384638,6.95713,2527.1,2525.7,3.6578686]
[1729783384639,3.95742,2526.9,2526.6,0.7995]
[1729783384840,4.4805686,2526.7,2525.9,0.7995]
[1729783385008,4.4805686,2526.7,2526.0,3.95868]
[1729783385009,3.9581,2526.5,2526.0,3.95868]
[1729783385511,3.95829,2526.4,2525.9,4.75846]
[1729783385708,3.95829,2526.4,2526.0,3.95874]
[1729783387501,3.0,2527.2,2526.0,3.96874]
[1729783387703,3.95829,2526.4,2526.0,0.01]
[1729783387903,3.95829,2526.4,2526.0,3.9688]
[1729783388203,3.6578686,2526.7,2526.0,3.9688]
[1729783388408,3.95795,2526.6,2526.0,3.9688]
[1729783388609,3.95807,2526.5,2526.0,3.9688]
[1729783388849,3.95821,2526.4,2526.0,0.01]
[1729783389211,3.95806,2526.5,2526.0,0.01]
[1729783389554,3.95835,2526.4,2525.9,4.75838]
[1729783389730,3.6578686,2526.4,2525.7,0.7979]
[1729783389938,3.95868,2526.1,2525.7,0.01]
[1729783390646,3.95868,2526.1,2525.7,3.96929]
[1729783390848,8.4210886,2526.2,2525.7,3.96929]
[1729783391048,4.76322,2526.2,2525.7,3.96929]
[1729783392012,0.8047,2526.2,2525.8,3.95906]
[1729783392648,0.8047,2526.2,2525.7,3.96929]
[1729783392947,0.8047,2526.2,2525.7,7.92847]
[1729783393149,0.8047,2526.2,2525.8,3.95912]
[1729783393337,3.95851,2526.2,2525.9,0.7824]
[1729783393728,3.95837,2526.3,2525.9,0.7824]
[1729783394252,7.91682,2526.3,2525.9,0.7824]
[1729783394449,3.95837,2526.3,2525.9,0.7824]
[1729783394651,4.72343,2526.4,2525.9,4.74137]
[1729783394807,0.7652,2526.4,2525.9,1.663454]
[1729783395151,3.95813,2526.5,2526.0,3.95873]
[1729783395744,7.91597,2526.6,2526.2,0.8238]
[1729783395960,3.95795,2526.6,2526.2,0.8238]
[1729783396260,3.95807,2526.5,2526.2,0.8238]
[1729783397086,3.95791,2526.6,2526.2,0.8238]
[1729783397576,7.6155586,2526.8,2526.2,5.666366]
[1729783397577,3.95783,2526.7,2526.2,5.666366]
[1729783397983,3.95789,2526.6,2526.2,1.707926]
[1729783398450,3.95783,2526.7,2526.3,3.95834]
[1729783398965,3.95758,2526.8,2526.3,3.95834]
[1729783399935,3.9578,2526.7,2526.2,5.666426]
[1729783400135,3.9578,2526.7,2526.3,0.9624996]
[1729783400443,3.95817,2526.5,2526.2,0.8238]
[1729783400644,3.95811,2526.5,2526.2,0.8238]